bitfinex/quotes_SOLUSD_20240914
["timestamp","ask_amount","ask_price","bid_price","bid_amount"]
[1726316205650,38.4516,137.33,137.26,0.12549]
[1726316205958,38.4516,137.33,137.26,20.12549]
[1726316206670,38.4516,137.33,137.26,0.12549]
[1726316208661,21.4308,137.32,137.26,0.12549]
[1726316208859,43.3108,137.32,137.25,0.2540887]
[1726316210249,41.88,137.31,137.25,0.2540887]
[1726316210437,21.4308,137.3,137.25,0.2540887]
[1726316219384,43.3108,137.3,137.25,0.2540887]
[1726316221088,21.4308,137.3,137.25,0.2540887]
[1726316230267,15.3431,137.3,137.25,0.2540887]
[1726316230489,6.5186,137.33,137.26,14.26082621]
[1726316230692,6.5186,137.33,137.27,14.26082621]
[1726316231893,6.5186,137.33,137.28,15.19226241]
[1726316232095,6.5186,137.33,137.28,14.26082621]
[1726316233487,16.0413,137.34,137.28,14.26082621]
[1726316235693,16.0413,137.34,137.29,14.26082621]
[1726316235898,22.5599,137.37,137.29,14.26082621]
[1726316236775,44.4399,137.37,137.29,14.26082621]
[1726316236980,20.0,137.36,137.29,14.26082621]
[1726316239689,20.0,137.36,137.3,0.12549]
[1726316243302,20.0,137.36,137.3,14.38631621]
[1726316245310,20.0,137.36,137.3,0.12549]
[1726316251408,22.5599,137.37,137.3,0.12549]
[1726316255201,22.5599,137.37,137.3,14.38631621]
[1726316256300,22.5599,137.37,137.31,14.26082621]
[1726316256604,28.4479887,137.4,137.31,14.26082621]
[1726316259587,28.4479887,137.4,137.3,14.38631621]
[1726316263629,28.4479887,137.4,137.31,5.73547788]
[1726316263923,28.4479887,137.4,137.32,5.73547788]
[1726316264222,28.4479887,137.4,137.33,5.73547788]
[1726316264422,28.4479887,137.4,137.3,14.38631621]
[1726316265323,28.4479887,137.4,137.3,18.33157001]
[1726316265628,28.4479887,137.4,137.3,14.38631621]
[1726316265803,28.4479887,137.4,137.3,18.33157001]
[1726316266012,28.4479887,137.4,137.3,14.38631621]
[1726316266728,28.4479887,137.4,137.3,18.33157001]
[1726316266917,28.4479887,137.4,137.3,14.38631621]
[1726316268324,28.4479887,137.4,137.3,18.33207966]
[1726316268518,28.4479887,137.4,137.3,14.38631621]
[1726316268712,28.4479887,137.4,137.3,18.33207966]
[1726316268923,28.4479887,137.4,137.3,14.38631621]
[1726316269118,28.4479887,137.4,137.3,18.33207966]
[1726316269334,28.4479887,137.4,137.3,14.38631621]
[1726316269528,28.4479887,137.4,137.3,18.33207966]
[1726316269733,28.4479887,137.4,137.3,14.38631621]
[1726316270027,28.4479887,137.4,137.3,18.33207966]
[1726316270220,28.4479887,137.4,137.3,14.38631621]
[1726316270527,28.4479887,137.4,137.3,18.33207966]
[1726316270720,28.4479887,137.4,137.31,3.94576345]
[1726316271342,28.4479887,137.4,137.3,14.38631621]
[1726316271632,28.4479887,137.4,137.31,3.94517303]
[1726316271928,28.4479887,137.4,137.31,18.20599924]
[1726316272535,28.4479887,137.4,137.32,3.94517303]
[1726316272706,28.4479887,137.4,137.32,18.20599924]
[1726316272907,28.4479887,137.4,137.32,14.26082621]
[1726316273113,28.4479887,137.4,137.32,18.20599924]
[1726316273332,28.4479887,137.4,137.32,14.26082621]
[1726316273519,28.4479887,137.4,137.32,18.20599924]
[1726316273723,28.4479887,137.4,137.32,14.26082621]
[1726316274023,28.4479887,137.4,137.32,18.20599924]
[1726316274335,28.4479887,137.4,137.32,14.26082621]
[1726316279320,28.4479887,137.4,137.33,14.26082621]
[1726316279532,6.5679887,137.4,137.34,14.26082621]
[1726316280329,6.5679887,137.4,137.35,14.26082621]
[1726316282829,6.5679887,137.4,137.32,0.12549]
[1726316283031,6.5679887,137.4,137.33,14.26082621]
[1726316284529,6.5679887,137.4,137.34,14.38631621]
[1726316285321,6.5679887,137.4,137.34,14.26082621]
[1726316286649,6.5679887,137.4,137.35,14.26082621]
[1726316296166,6.51131794,137.4,137.35,14.26082621]
[1726316298235,28.39131794,137.4,137.35,14.26082621]
[1726316298442,28.39131794,137.4,137.34,0.12549]
[1726316298443,15.2561,137.39,137.34,0.12549]
[1726316298967,15.2561,137.39,137.31,14.26082621]
[1726316301161,37.1361,137.39,137.32,0.12549]
[1726316302364,37.1361,137.39,137.31,14.26082621]
[1726316308069,37.1361,137.39,137.32,14.26082621]
[1726316308256,15.2561,137.39,137.33,1.45599881]
[1726316308450,15.2561,137.39,137.33,14.26082621]
[1726316313164,15.2561,137.39,137.32,0.12549]
[1726316313165,15.2561,137.39,137.34,14.26082621]
[1726316313584,37.1361,137.39,137.33,14.26082621]
[1726316313870,37.1361,137.39,137.32,14.38631621]
[1726316314282,37.1361,137.39,137.32,14.26082621]
[1726316315553,37.1361,137.39,137.28,20.0]
[1726316315754,37.1361,137.39,137.31,14.26082621]
[1726316316151,37.1361,137.39,137.3,0.12549]
[1726316316352,6.6259,137.38,137.3,0.12549]
[1726316316550,15.547,137.37,137.3,14.38631621]
[1726316316764,15.547,137.37,137.3,14.26082621]
[1726316321885,15.547,137.37,137.31,14.26082621]
[1726316324659,15.547,137.37,137.32,5.73928176]
[1726316324859,15.547,137.37,137.31,14.26082621]
[1726316325570,15.547,137.37,137.33,14.26082621]
[1726316326965,15.547,137.37,137.32,14.26082621]
[1726316327764,15.547,137.37,137.33,14.26082621]
[1726316330786,15.547,137.37,137.31,0.12549]
[1726316330962,15.547,137.37,137.32,14.26082621]
[1726316333191,15.547,137.37,137.33,14.26082621]
[1726316333391,15.547,137.37,137.34,14.26082621]
[1726316333693,15.547,137.37,137.33,14.26082621]
[1726316334073,15.547,137.37,137.33,14.38631621]
[1726316334563,15.547,137.37,137.33,14.26082621]
[1726316336285,15.547,137.37,137.34,0.12549]
[1726316336891,15.547,137.37,137.33,14.26082621]
[1726316339077,15.547,137.37,137.32,14.38631621]
[1726316339391,15.547,137.37,137.33,3.94556742]
[1726316339579,15.547,137.37,137.32,14.38631621]
[1726316339778,15.547,137.37,137.33,3.94560856]
[1726316340091,15.547,137.37,137.32,14.38631621]
[1726316340274,15.547,137.37,137.33,3.9456067]
[1726316340476,15.547,137.37,137.32,14.38631621]
[1726316340682,15.547,137.37,137.33,3.94599836]
[1726316340878,15.547,137.37,137.32,14.38631621]
[1726316341083,15.547,137.37,137.33,3.94571722]
[1726316341295,15.547,137.37,137.34,3.94542083]
[1726316341500,15.547,137.37,137.32,14.38631621]
[1726316341794,15.547,137.37,137.33,3.94515374]
[1726316341999,15.547,137.37,137.34,3.94515374]
[1726316342185,15.547,137.37,137.33,3.94542678]
[1726316342496,15.547,137.37,137.31,14.26082621]
[1726316344320,15.547,137.37,137.33,14.26082621]
[1726316350208,15.547,137.37,137.34,14.26082621]
[1726316350405,15.547,137.37,137.36,14.26082621]
[1726316350587,0.19741794,137.4,137.36,14.26082621]
[1726316350791,0.19741794,137.4,137.32,1.58151028]
[1726316350792,0.19741794,137.4,137.37,14.26082621]
[1726316351285,0.19741794,137.4,137.38,14.26082621]
[1726316352217,0.19741794,137.4,137.39,14.26082621]
[1726316353011,0.19741794,137.4,137.39,14.38631621]
[1726316356815,0.19741794,137.4,137.39,0.12549]
[1726316357109,0.19741794,137.4,137.39,14.38631621]
[1726316359588,0.19741794,137.4,137.39,14.26082621]
[1726316360991,0.19741794,137.4,137.39,34.26082621]
[1726316361819,0.19741794,137.4,137.39,34.38631621]
[1726316361999,0.19741794,137.4,137.39,20.12549]
[1726316362515,0.19741794,137.4,137.37,14.26082621]
[1726316363724,0.19741794,137.4,137.38,0.12549]
[1726316365742,0.19741794,137.4,137.38,14.38631621]
[1726316367526,0.19741794,137.4,137.39,14.26082621]
[1726316368105,0.19741794,137.4,137.39,14.38631621]
[1726316370237,0.19741794,137.4,137.39,0.12549]
[1726316370730,0.19741794,137.4,137.37,14.26082621]
[1726316371413,0.19741794,137.4,137.34,14.26082621]
[1726316371608,0.19741794,137.4,137.36,0.12549]
[1726316371822,16.2607,137.39,137.36,0.12549]
[1726316372418,16.2607,137.39,137.35,20.0]
[1726316375334,16.2607,137.39,137.35,34.26082621]
[1726316375821,16.2607,137.39,137.35,14.26082621]
[1726316377633,16.2607,137.39,137.34,0.12549]
[1726316377634,16.2607,137.39,137.36,14.26082621]
[1726316378324,16.2607,137.39,137.37,14.26082621]
[1726316378833,16.2607,137.39,137.37,14.38631621]
[1726316379542,16.2607,137.39,137.37,14.26082621]
[1726316380720,16.2607,137.39,137.36,0.12549]
[1726316381524,16.2607,137.39,137.36,15.84170165]
[1726316382547,16.2607,137.39,137.36,14.38631621]
[1726316386344,16.2607,137.39,137.36,0.12549]
[1726316388541,16.2607,137.39,137.35,20.12549]
[1726316389350,16.2607,137.39,137.33,20.0]
[1726316389949,16.2607,137.39,137.32,14.26082621]
[1726316390854,16.2607,137.39,137.35,14.26082621]
[1726316392257,16.2607,137.39,137.37,14.26082621]
[1726316392844,16.2607,137.39,137.38,14.26082621]
[1726316394853,16.2607,137.39,137.36,0.12549]
[1726316395251,16.2607,137.39,137.35,14.26082621]
[1726316395838,16.2607,137.39,137.34,14.26082621]
[1726316396543,16.2607,137.39,137.34,14.38631621]
[1726316397845,16.2607,137.39,137.34,0.12549]
[1726316400692,16.2607,137.39,137.31,14.26082621]
[1726316400962,16.2607,137.39,137.33,34.26082621]
[1726316401168,16.2607,137.39,137.35,14.26082621]
[1726316402264,16.2607,137.39,137.34,0.12549]
[1726316402670,16.2607,137.39,137.36,0.12549]
[1726316403045,16.2607,137.39,137.35,14.26082621]
[1726316403541,16.2607,137.39,137.36,14.26082621]
[1726316403953,16.2607,137.39,137.35,14.26082621]
[1726316404967,16.2607,137.39,137.36,0.12549]
[1726316405450,16.2607,137.39,137.34,14.38631621]
[1726316406771,16.2607,137.39,137.35,14.26082621]
[1726316410354,16.2607,137.39,137.34,14.38631621]
[1726316410556,16.2607,137.39,137.34,0.12549]
[1726316411160,16.2607,137.39,137.32,14.26082621]
[1726316411467,16.2607,137.39,137.3,20.0]
[1726316411657,16.2607,137.39,137.31,14.26082621]
[1726316411860,16.2607,137.39,137.32,14.26082621]
[1726316413179,16.2607,137.39,137.31,0.12549]
[1726316413378,16.2607,137.39,137.31,14.38631621]
[1726316415280,6.341,137.38,137.31,14.38631621]
[1726316415478,15.8638,137.37,137.31,0.12549]
[1726316415776,15.8638,137.37,137.31,20.12549]
[1726316416153,15.8638,137.37,137.31,20.0]
[1726316416754,6.341,137.36,137.31,20.0]
[1726316416959,15.8638,137.35,137.28,14.26082621]
[1726316417279,15.8638,137.35,137.28,14.31749697]
[1726316418563,15.8638,137.35,137.29,0.12549]
[1726316421680,6.3594,137.34,137.29,0.12549]
[1726316421982,16.542,137.33,137.29,0.12549]
[1726316424283,16.542,137.33,137.28,14.44298697]
[1726316427988,16.542,137.33,137.28,0.18216076]
[1726316428576,16.542,137.33,137.28,14.44298697]
[1726316430385,16.542,137.33,137.28,0.18216076]
[1726316430579,38.422,137.33,137.28,0.18216076]
[1726316430784,6.6605,137.32,137.28,0.05667076]
[1726316431084,16.5218,137.31,137.28,0.05667076]
[1726316435168,21.88,137.36,137.28,0.05667076]
[1726316435379,14.45227882,137.36,137.28,0.05667076]
[1726316438490,7.02455764,137.34,137.28,0.05667076]
[1726316439193,44.0533,137.35,137.28,0.05667076]
[1726316440777,44.0533,137.35,137.28,14.31749697]
[1726316440978,44.0533,137.35,137.29,14.26082621]
[1726316444987,44.0533,137.35,137.28,0.05667076]
[1726316445197,44.0533,137.35,137.29,5.73171432]
[1726316445367,44.0533,137.35,137.29,5.73160811]
[1726316445690,44.0533,137.35,137.28,0.05667076]
[1726316445897,44.0533,137.35,137.29,5.73021287]
[1726316446089,44.0533,137.35,137.28,0.05667076]
[1726316446276,44.0533,137.35,137.29,5.7301709]
[1726316446483,44.0533,137.35,137.28,0.05667076]
[1726316446690,44.0533,137.35,137.29,5.7301709]
[1726316446882,44.0533,137.35,137.28,0.05667076]
[1726316447084,44.0533,137.35,137.29,5.72996345]
[1726316447289,44.0533,137.35,137.28,0.05667076]
[1726316447489,44.0533,137.35,137.29,5.72798978]
[1726316447697,44.0533,137.35,137.28,0.05667076]
[1726316447912,44.0533,137.35,137.29,5.72855632]
[1726316448075,44.0533,137.35,137.28,0.05667076]
[1726316448608,44.0533,137.35,137.29,5.72848336]
[1726316448775,44.0533,137.35,137.28,0.05667076]
[1726316449103,44.0533,137.35,137.29,5.7284395]
[1726316449289,44.0533,137.35,137.3,5.72868728]
[1726316449595,44.0533,137.35,137.29,5.72907303]
[1726316449801,44.0533,137.35,137.3,5.72907303]
[1726316449996,44.0533,137.35,137.28,0.05667076]
[1726316450197,44.0533,137.35,137.29,5.72869061]
[1726316450502,44.0533,137.35,137.3,5.72869061]
[1726316450812,44.0533,137.35,137.28,0.05667076]
[1726316450983,44.0533,137.35,137.29,5.72859329]
[1726316451183,44.0533,137.35,137.3,5.72859329]
[1726316451385,44.0533,137.35,137.28,0.05667076]
[1726316451578,44.0533,137.35,137.29,5.72898161]
[1726316451902,44.0533,137.35,137.3,5.72898161]
[1726316452196,44.0533,137.35,137.28,0.05667076]
[1726316452398,44.0533,137.35,137.29,5.72907754]
[1726316452589,44.0533,137.35,137.3,5.72907754]
[1726316452784,44.0533,137.35,137.28,0.05667076]
[1726316453089,44.0533,137.35,137.29,5.7293794]
[1726316453288,44.0533,137.35,137.3,5.7293794]
[1726316453492,44.0533,137.35,137.28,0.05667076]
[1726316453691,44.0533,137.35,137.29,5.73048698]
[1726316454007,44.0533,137.35,137.28,0.05667076]
[1726316454204,44.0533,137.35,137.29,5.73048484]
[1726316454385,44.0533,137.35,137.28,0.05667076]
[1726316454585,44.0533,137.35,137.29,5.72991985]
[1726316454805,44.0533,137.35,137.28,0.05667076]
[1726316455006,44.0533,137.35,137.29,5.72993203]
[1726316455196,44.0533,137.35,137.28,0.05667076]
[1726316455399,44.0533,137.35,137.29,5.72992748]
[1726316455599,44.0533,137.35,137.28,0.05667076]
[1726316455786,44.0533,137.35,137.29,5.7301298]
[1726316455987,44.0533,137.35,137.28,0.05667076]
[1726316456209,6.4976,137.32,137.28,0.05667076]
[1726316456406,21.88,137.31,137.28,0.05667076]
[1726316457908,20.0,137.3,137.28,0.05667076]
[1726316458490,41.88,137.3,137.28,0.05667076]
[1726316458712,35.4246,137.29,137.28,0.05667076]
[1726316458909,57.3046,137.29,137.28,0.05667076]
[1726316470719,35.4246,137.29,137.28,0.05667076]
[1726316474001,15.4246,137.29,137.28,0.05667076]
[1726316474202,6.4976,137.32,137.28,0.05667076]
[1726316474527,21.6366,137.32,137.28,0.05667076]
[1726316475317,20.0,137.31,137.28,0.05667076]
[1726316476021,41.88,137.31,137.28,0.05667076]
[1726316477131,15.139,137.32,137.28,0.05667076]
[1726316483137,20.0,137.31,137.28,0.05667076]
[1726316483343,41.88,137.31,137.28,0.05667076]
[1726316485226,20.0,137.31,137.28,0.05667076]
[1726316485420,41.88,137.34,137.28,0.05667076]
[1726316486622,20.0,137.34,137.28,0.05667076]
[1726316489850,20.0,137.32,137.28,0.05667076]
[1726316496557,20.0,137.3,137.28,0.05667076]
[1726316496755,20.0,137.32,137.28,0.05667076]
[1726316501650,20.12549,137.33,137.28,0.05667076]
[1726316502675,20.0,137.33,137.28,0.05667076]
[1726316512586,20.0,137.34,137.28,0.05667076]
[1726316514500,37.29733015,137.39,137.3,15.6922]
[1726316514794,7.60219023,137.37,137.3,29.95302621]
[1726316514990,37.29733015,137.39,137.3,29.95302621]
[1726316515398,43.15763015,137.39,137.3,29.95302621]
[1726316516994,20.0,137.38,137.3,29.95302621]
[1726316518599,41.88,137.38,137.3,15.6922]
[1726316520915,20.0,137.38,137.3,29.95302621]
[1726316521488,20.0,137.38,137.3,15.6922]
[1726316523105,41.88,137.38,137.3,15.6922]
[1726316526789,49.48556338,137.38,137.3,15.6922]
[1726316527196,56.76466338,137.38,137.3,15.6922]
[1726316533114,49.48556338,137.38,137.3,15.6922]
[1726316535494,41.88,137.38,137.3,29.95302621]
[1726316537418,20.0,137.38,137.33,20.67712621]
[1726316537797,20.19741794,137.4,137.33,6.4163]
[1726316541899,20.19741794,137.4,137.34,16.6129]
[1726316545023,0.19741794,137.4,137.34,16.6129]
[1726316562838,0.19741794,137.4,137.34,30.87372621]
[1726316566838,0.19741794,137.4,137.35,14.26082621]
[1726316567616,0.19741794,137.4,137.36,15.46740273]
[1726316567840,0.19741794,137.4,137.37,6.4071]
[1726316568543,0.19741794,137.4,137.38,16.1671]
[1726316568741,0.19741794,137.4,137.38,31.63516923]
[1726316568947,0.19741794,137.4,137.38,30.42792621]
[1726316569839,0.19741794,137.4,137.39,0.12549]
[1726316570246,0.19741794,137.4,137.38,30.42792621]
[1726316571242,0.19741794,137.4,137.38,16.1671]
[1726316584330,0.19741794,137.4,137.38,31.88364927]
[1726316584657,0.19741794,137.4,137.38,30.42792621]
[1726316584836,0.19741794,137.4,137.39,5.66379596]
[1726316586150,0.19741794,137.4,137.38,30.42792621]
[1726316587171,0.19741794,137.4,137.39,5.66359328]
[1726316587477,0.19741794,137.4,137.38,30.42792621]
[1726316588548,0.19741794,137.4,137.38,16.1671]
[1726316590452,0.19741794,137.4,137.37,0.12549]
[1726316590941,0.19741794,137.4,137.34,16.1278]
[1726316591168,0.19741794,137.4,137.35,5.66706482]
[1726316591357,0.19741794,137.4,137.34,16.1278]
[1726316591558,0.19741794,137.4,137.35,5.66741172]
[1726316591865,0.19741794,137.4,137.34,16.1278]
[1726316592080,0.19741794,137.4,137.35,5.6672366]
[1726316592371,0.19741794,137.4,137.36,5.6672366]
[1726316592547,0.19741794,137.4,137.34,16.1278]
[1726316592746,0.19741794,137.4,137.35,5.66652427]
[1726316592964,0.19741794,137.4,137.36,5.66652427]
[1726316593167,0.19741794,137.4,137.34,30.38862621]
[1726316593361,0.19741794,137.4,137.35,5.66677115]
[1726316593563,0.19741794,137.4,137.36,5.66677115]
[1726316593871,0.19741794,137.4,137.35,0.12549]
[1726316594046,0.19741794,137.4,137.36,5.66695684]
[1726316594247,0.19741794,137.4,137.35,0.12549]
[1726316594451,0.19741794,137.4,137.36,5.66693593]
[1726316594670,0.19741794,137.4,137.35,0.12549]
[1726316594852,0.19741794,137.4,137.36,5.66743317]
[1726316595052,0.19741794,137.4,137.35,0.12549]
[1726316595251,0.19741794,137.4,137.36,5.66676399]
[1726316595460,0.19741794,137.4,137.35,0.12549]
[1726316595674,0.19741794,137.4,137.36,5.66674306]
[1726316595969,0.19741794,137.4,137.35,0.12549]
[1726316596178,0.19741794,137.4,137.36,5.6662007]
[1726316596358,0.19741794,137.4,137.35,0.12549]
[1726316596551,0.19741794,137.4,137.36,5.66632414]
[1726316596757,0.19741794,137.4,137.37,5.66632414]
[1726316596968,0.19741794,137.4,137.35,0.12549]
[1726316597271,0.19741794,137.4,137.36,5.66571981]
[1726316597452,0.19741794,137.4,137.35,0.12549]
[1726316597653,0.19741794,137.4,137.36,5.66574134]
[1726316597859,0.19741794,137.4,137.34,16.1278]
[1726316598062,0.19741794,137.4,137.35,5.66574539]
[1726316598255,0.19741794,137.4,137.34,16.1278]
[1726316598256,0.19741794,137.4,137.36,5.66574539]
[1726316598454,0.19741794,137.4,137.34,16.1278]
[1726316598666,0.19741794,137.4,137.35,5.66621848]
[1726316598856,0.19741794,137.4,137.36,5.66621848]
[1726316599056,0.19741794,137.4,137.34,16.1278]
[1726316599259,0.19741794,137.4,137.35,5.66646538]
[1726316599459,0.19741794,137.4,137.36,5.66646345]
[1726316599678,0.19741794,137.4,137.34,16.1278]
[1726316599874,0.19741794,137.4,137.35,5.66646011]
[1726316600090,0.19741794,137.4,137.36,5.66646011]
[1726316600378,0.19741794,137.4,137.33,14.38631621]
[1726316600557,0.19741794,137.4,137.34,5.66724217]
[1726316600758,0.19741794,137.4,137.35,5.66724217]
[1726316600952,0.19741794,137.4,137.36,5.66724217]
[1726316601179,15.81551794,137.4,137.34,0.12549]
[1726316601375,15.81551794,137.4,137.35,5.6675828]
[1726316601575,15.81551794,137.4,137.36,5.6675828]
[1726316601779,15.81551794,137.4,137.34,0.12549]
[1726316601959,15.81551794,137.4,137.35,5.66798982]
[1726316602164,15.81551794,137.4,137.36,5.66798982]
[1726316602477,15.81551794,137.4,137.33,0.12549]
[1726316602655,15.81551794,137.4,137.34,5.66762906]
[1726316602970,15.81551794,137.4,137.35,5.66762906]
[1726316603177,15.81551794,137.4,137.36,5.66762906]
[1726316603482,15.81551794,137.4,137.33,0.12549]
[1726316603775,15.81551794,137.4,137.34,5.66725198]
[1726316603972,15.81551794,137.4,137.35,5.66725198]
[1726316604174,15.81551794,137.4,137.36,5.66725198]
[1726316604483,15.81551794,137.4,137.33,0.12549]
[1726316604661,15.81551794,137.4,137.34,5.66725198]
[1726316604859,15.81551794,137.4,137.35,5.66724864]
[1726316605058,15.81551794,137.4,137.36,5.66724864]
[1726316605258,15.81551794,137.4,137.33,0.12549]
[1726316605564,15.81551794,137.4,137.34,5.6669701]
[1726316605758,15.81551794,137.4,137.35,5.6669701]
[1726316605964,15.81551794,137.4,137.36,5.6669701]
[1726316606178,15.81551794,137.4,137.37,5.66619338]
[1726316606378,15.81551794,137.4,137.34,14.26082621]
[1726316606578,15.81551794,137.4,137.35,5.66622149]
[1726316606780,15.81551794,137.4,137.36,5.66622149]
[1726316606957,15.81551794,137.4,137.37,5.66622149]
[1726316607257,15.81551794,137.4,137.34,14.26082621]
[1726316607462,15.81551794,137.4,137.35,5.66547863]
[1726316607660,15.81551794,137.4,137.36,5.66547863]
[1726316607881,15.81551794,137.4,137.37,5.66547863]
[1726316608084,15.81551794,137.4,137.34,14.26082621]
[1726316608577,15.81551794,137.4,137.35,5.66510573]
[1726316608792,15.81551794,137.4,137.36,5.66510573]
[1726316609082,15.81551794,137.4,137.37,5.66510573]
[1726316609281,15.81551794,137.4,137.34,14.26082621]
[1726316609481,15.81551794,137.4,137.35,5.66508476]
[1726316609666,15.81551794,137.4,137.36,5.66508476]
[1726316609869,15.81551794,137.4,137.37,5.66508476]
[1726316610081,15.81551794,137.4,137.34,14.26082621]
[1726316610263,15.81551794,137.4,137.35,5.66358236]
[1726316610465,15.81551794,137.4,137.36,5.66358236]
[1726316610666,15.81551794,137.4,137.37,5.66358236]
[1726316610864,0.19741794,137.4,137.36,14.26082621]
[1726316611087,0.19741794,137.4,137.37,5.66306211]
[1726316611391,0.19741794,137.4,137.38,5.66306211]
[1726316611689,0.19741794,137.4,137.36,14.38631621]
[1726316611892,0.19741794,137.4,137.37,5.6630367]
[1726316612092,0.19741794,137.4,137.36,0.12549]
[1726316617873,0.19741794,137.4,137.34,14.26082621]
[1726316618075,0.19741794,137.4,137.35,14.26082621]
[1726316618297,0.19741794,137.4,137.35,14.38631621]
[1726316621398,0.19741794,137.4,137.36,14.26082621]
[1726316628532,0.19741794,137.4,137.37,15.71560469]
[1726316628695,0.19741794,137.4,137.39,14.26082621]
[1726316630201,0.19741794,137.4,137.37,0.12549]
[1726316630417,0.19741794,137.4,137.37,14.38631621]
[1726316630607,0.19741794,137.4,137.39,0.12549]
[1726316631106,0.19741794,137.4,137.37,14.26082621]
[1726316632396,0.19741794,137.4,137.35,0.12549]
[1726316632595,0.19741794,137.4,137.36,14.26082621]
[1726316633423,0.19741794,137.4,137.37,0.12549]
[1726316634822,0.19741794,137.4,137.34,0.12549]
[1726316634823,0.19741794,137.4,137.34,14.26082621]
[1726316635414,0.19741794,137.4,137.35,0.12549]
[1726316636710,0.19741794,137.4,137.35,14.26082621]
[1726316637019,0.19741794,137.4,137.35,14.38631621]
[1726316643035,0.19741794,137.4,137.35,0.12549]
[1726316643418,0.19741794,137.4,137.34,14.38631621]
[1726316643610,0.19741794,137.4,137.34,0.12549]
[1726316648223,15.667,137.39,137.34,0.12549]
[1726316650637,15.667,137.39,137.35,3.931574]
[1726316650938,15.667,137.39,137.34,0.12549]
[1726316651138,15.667,137.39,137.35,3.93159024]
[1726316651314,15.667,137.39,137.34,0.12549]
[1726316651519,15.667,137.39,137.35,3.93154586]
[1726316651822,15.667,137.39,137.34,0.12549]
[1726316652406,15.667,137.39,137.35,3.93154403]
[1726316652823,15.667,137.39,137.34,0.12549]
[1726316653026,15.667,137.39,137.35,3.93154165]
[1726316653230,15.667,137.39,137.34,0.12549]
[1726316657722,15.667,137.39,137.34,14.38631621]
[1726316659146,15.667,137.39,137.35,1.45594154]
[1726316659319,15.667,137.39,137.35,15.71676775]
[1726316659519,15.667,137.39,137.36,1.45579077]
[1726316659716,15.667,137.39,137.36,15.71661698]
[1726316662543,6.63141794,137.4,137.36,14.26082621]
[1726316662725,0.19741794,137.4,137.38,14.26082621]
[1726316663462,0.19741794,137.4,137.39,0.12549]
[1726316668062,0.19741794,137.4,137.39,14.38631621]
[1726316672264,0.19741794,137.4,137.39,20.04690576]
[1726316675967,0.19741794,137.4,137.39,20.04748011]
[1726316679571,0.19741794,137.4,137.39,20.0474838]
[1726316681455,0.19741794,137.4,137.39,40.0474838]
[1726316684287,0.19741794,137.4,137.39,20.0474838]
[1726316689374,0.19741794,137.4,137.39,14.38631621]
[1726316689692,0.19741794,137.4,137.39,20.04811825]
[1726316691879,0.19741794,137.4,137.39,21.41507562]
[1726316692056,0.19741794,137.4,137.39,20.04811825]
[1726316693261,0.19741794,137.4,137.39,21.41488213]
[1726316693776,0.19741794,137.4,137.39,20.04811825]
[1726316695482,0.19741794,137.4,137.39,5.78729204]
[1726316695669,0.19741794,137.4,137.39,20.04811825]
[1726316696278,0.19741794,137.4,137.39,21.41438472]
[1726316697569,0.19741794,137.4,137.39,20.04811825]
[1726316701871,0.19741794,137.4,137.39,20.04689688]
[1726316704700,0.19741794,137.4,137.39,14.38631621]
[1726316704873,0.19741794,137.4,137.39,20.04818944]
[1726316705988,0.19741794,137.4,137.39,20.04773964]
[1726316706495,0.19741794,137.4,137.39,5.78691343]
[1726316706789,0.19741794,137.4,137.39,20.04773964]
[1726316711268,0.19741794,137.4,137.39,20.04788384]
[1726316711788,0.19741794,137.4,137.39,14.38631621]
[1726316711986,0.19741794,137.4,137.39,20.04768203]
[1726316715704,0.19741794,137.4,137.39,20.04805039]
[1726316722887,0.19741794,137.4,137.39,5.78722418]
[1726316723879,0.19741794,137.4,137.39,5.66173418]
[1726316724694,0.19741794,137.4,137.39,5.78722418]
[1726316725001,16.59371794,137.4,137.39,5.78722418]
[1726316725205,16.59371794,137.4,137.35,14.26082621]
[1726316725378,16.59371794,137.4,137.36,5.66727075]
[1726316725578,16.59371794,137.4,137.35,14.26082621]
[1726316725579,16.59371794,137.4,137.37,5.6668611]
[1726316725780,16.59371794,137.4,137.38,5.6664697]
[1726316726010,16.59371794,137.4,137.35,14.26082621]
[1726316726215,16.59371794,137.4,137.36,5.6668951]
[1726316726385,16.59371794,137.4,137.37,5.6668951]
[1726316726710,16.59371794,137.4,137.35,14.26082621]
[1726316726912,16.59371794,137.4,137.36,5.66585675]
[1726316727098,16.59371794,137.4,137.37,5.66585675]
[1726316727285,16.59371794,137.4,137.35,14.26082621]